[Event "Late Titled Tuesday Blitz February 8 2022"]
[White "Potapova, Margarita"]
[Black "Pavlidou, Ekaterini"]
[WhiteFideId "14126869"]
[BlackFideId "4213262"]
[WhiteElo "2209"]
[BlackElo "2127"]
[Result "1-0"]
[Round "02"]
[TimeControl "180+1"]
[Date "2022.02.09"]
[WhiteClock "0:00:08"]
[BlackClock "0:00:43"]

1. d4 {[%clk 0:03:00]}  Nf6 {[%clk 0:02:58]} 2. c4 {[%clk 0:03:01]}  g6 {[%clk 0:02:57]} 3. Nc3 {[%clk 0:03:01]}  Bg7 {[%clk 0:02:57]} 4. e4 {[%clk 0:03:01]}  d6 {[%clk 0:02:58]} 5. h3 {[%clk 0:02:59]}  O-O {[%clk 0:02:57]} 6. Be3 {[%clk 0:02:59]}  Nbd7 {[%clk 0:02:52]} 7. g4 {[%clk 0:02:56]}  c5 {[%clk 0:02:52]} 8. d5 {[%clk 0:02:56]}  e6 {[%clk 0:02:52]} 9. dxe6 {[%clk 0:02:52]}  fxe6 {[%clk 0:02:45]} 10. Qxd6 {[%clk 0:02:52]}  Qa5 {[%clk 0:02:36]} 11. Bd2 {[%clk 0:02:24]}  Ne8 {[%clk 0:02:16]} 12. Qd3 {[%clk 0:01:57]}  Ne5 {[%clk 0:02:11]} 13. Qe2 {[%clk 0:01:57]}  Nd6 {[%clk 0:02:08]} 14. Nb5 {[%clk 0:01:25]}  Qb6 {[%clk 0:01:53]} 15. Nxd6 {[%clk 0:01:25]}  Qxd6 {[%clk 0:01:45]} 16. O-O-O {[%clk 0:01:16]}  Nc6 {[%clk 0:01:44]} 17. Nf3 {[%clk 0:01:00]}  Nd4 {[%clk 0:01:41]} 18. Nxd4 {[%clk 0:01:00]}  cxd4 {[%clk 0:01:42]} 19. f4 {[%clk 0:00:48]}  e5 {[%clk 0:01:39]} 20. f5 {[%clk 0:00:46]}  b5 {[%clk 0:01:39]} 21. Kb1 {[%clk 0:00:45]}  a6 {[%clk 0:01:30]} 22. Rc1 {[%clk 0:00:44]}  Bd7 {[%clk 0:01:30]} 23. c5 {[%clk 0:00:43]}  Qe7 {[%clk 0:01:23]} 24. h4 {[%clk 0:00:40]}  Rfc8 {[%clk 0:01:20]} 25. Bh3 {[%clk 0:00:14]}  Rxc5 {[%clk 0:01:16]} 26. g5 {[%clk 0:00:15]}  Bf8 {[%clk 0:01:05]} 27. f6 {[%clk 0:00:14]}  Qd8 {[%clk 0:01:02]} 28. Bxd7 {[%clk 0:00:11]}  Qxd7 {[%clk 0:01:01]} 29. Rxc5 {[%clk 0:00:12]}  Bxc5 {[%clk 0:01:00]} 30. h5 {[%clk 0:00:13]}  d3 {[%clk 0:00:58]} 31. Qh2 {[%clk 0:00:13]}  Bd4 {[%clk 0:00:58]} 32. hxg6 {[%clk 0:00:13]}  hxg6 {[%clk 0:00:45]} 33. Qh8+ {[%clk 0:00:12]}  Kf7 {[%clk 0:00:46]} 34. Qxa8 {[%clk 0:00:09]}  Ke6 {[%clk 0:00:44]} 35. Qxa6+ {[%clk 0:00:08]}  Qd6 {[%clk 0:00:43]} 36. Qxd6+ {[%clk 0:00:08]}  Kxd6 {[%clk 0:00:43]} 37. Rh7 {[%clk 0:00:08]} 1-0


[Site "https://www.chess.com"]

[Event "Late Titled Tuesday Blitz February 8 2022"]
[White "Pourkashiyan, Atousa"]
[Black "Demchenko, Anton"]
[WhiteFideId "12502014"]
[BlackFideId "4160258"]
[WhiteElo "2247"]
[BlackElo "2539"]
[Result "0-1"]
[Round "02"]
[TimeControl "180+1"]
[Date "2022.02.09"]
[WhiteClock "0:00:16"]
[BlackClock "0:00:06"]

1. e4 {[%clk 0:02:51]}  e5 {[%clk 0:02:58]} 2. Nf3 {[%clk 0:02:51]}  Nc6 {[%clk 0:02:56]} 3. Bb5 {[%clk 0:02:51]}  a6 {[%clk 0:02:56]} 4. Ba4 {[%clk 0:02:51]}  Nge7 {[%clk 0:02:56]} 5. Nc3 {[%clk 0:02:43]}  d6 {[%clk 0:02:53]} 6. d4 {[%clk 0:02:27]}  b5 {[%clk 0:02:52]} 7. Bb3 {[%clk 0:02:26]}  Nxd4 {[%clk 0:02:52]} 8. Nxd4 {[%clk 0:02:24]}  exd4 {[%clk 0:02:53]} 9. Nd5 {[%clk 0:02:24]}  c5 {[%clk 0:02:45]} 10. a4 {[%clk 0:02:20]}  c4 {[%clk 0:02:35]} 11. Ba2 {[%clk 0:02:19]}  Nxd5 {[%clk 0:02:35]} 12. exd5 {[%clk 0:02:20]}  Be7 {[%clk 0:02:33]} 13. Qxd4 {[%clk 0:02:18]}  O-O {[%clk 0:02:31]} 14. O-O {[%clk 0:02:18]}  Bf6 {[%clk 0:02:30]} 15. Qd1 {[%clk 0:02:10]}  Bf5 {[%clk 0:02:18]} 16. c3 {[%clk 0:02:11]}  Qd7 {[%clk 0:01:58]} 17. Bb1 {[%clk 0:02:09]}  Rab8 {[%clk 0:01:52]} 18. Bf4 {[%clk 0:02:02]}  Bxb1 {[%clk 0:01:42]} 19. Qxb1 {[%clk 0:02:00]}  b4 {[%clk 0:01:42]} 20. Qe4 {[%clk 0:01:41]}  Rfc8 {[%clk 0:01:42]} 21. Rac1 {[%clk 0:01:29]}  bxc3 {[%clk 0:01:27]} 22. bxc3 {[%clk 0:01:30]}  h6 {[%clk 0:01:21]} 23. Be3 {[%clk 0:01:26]}  Qxa4 {[%clk 0:01:18]} 24. Qf5 {[%clk 0:01:24]}  Qe8 {[%clk 0:00:41]} 25. Bf4 {[%clk 0:01:07]}  Qd8 {[%clk 0:00:34]} 26. Qg4 {[%clk 0:01:01]}  Kh8 {[%clk 0:00:32]} 27. Qg3 {[%clk 0:01:01]}  Rb6 {[%clk 0:00:30]} 28. Ra1 {[%clk 0:01:01]}  Ra8 {[%clk 0:00:23]} 29. h3 {[%clk 0:00:59]}  Rb3 {[%clk 0:00:21]} 30. Bxd6 {[%clk 0:00:54]}  Rxc3 {[%clk 0:00:21]} 31. Qf4 {[%clk 0:00:55]}  Rd3 {[%clk 0:00:20]} 32. Rfd1 {[%clk 0:00:53]}  Bxa1 {[%clk 0:00:19]} 33. Rxa1 {[%clk 0:00:51]}  Rxd5 {[%clk 0:00:18]} 34. Be5 {[%clk 0:00:50]}  f6 {[%clk 0:00:18]} 35. Bc3 {[%clk 0:00:46]}  Rd1+ {[%clk 0:00:18]} 36. Rxd1 {[%clk 0:00:46]}  Qxd1+ {[%clk 0:00:19]} 37. Kh2 {[%clk 0:00:47]}  Qd8 {[%clk 0:00:11]} 38. Qxc4 {[%clk 0:00:45]}  a5 {[%clk 0:00:10]} 39. g3 {[%clk 0:00:18]}  a4 {[%clk 0:00:11]} 40. Bb4 {[%clk 0:00:19]}  a3 {[%clk 0:00:11]} 41. Qa2 {[%clk 0:00:19]}  Qd4 {[%clk 0:00:08]} 42. Be7 {[%clk 0:00:17]}  Qb2 {[%clk 0:00:08]} 43. Qf7 {[%clk 0:00:16]}  Qxf2+ {[%clk 0:00:08]} 44. Kh1 {[%clk 0:00:17]}  a2 {[%clk 0:00:05]} 45. Bxf6 {[%clk 0:00:16]}  Qxf6 {[%clk 0:00:05]} 46. Qxf6 {[%clk 0:00:16]}  gxf6 {[%clk 0:00:06]} 0-1


[Site "https://www.chess.com"]

[Event "Late Titled Tuesday Blitz February 8 2022"]
[White "Ramirez, Alejandro"]
[Black "Aaditya Dhingra"]
[WhiteFideId "6500617"]
[BlackFideId "25678191"]
[WhiteElo "2694"]
[BlackElo "1789"]
[Result "1-0"]
[Round "02"]
[TimeControl "180+1"]
[Date "2022.02.09"]
[WhiteClock "0:02:03"]
[BlackClock "0:00:19"]

1. b3 {[%clk 0:03:00]}  e5 {[%clk 0:02:56]} 2. Bb2 {[%clk 0:03:01]}  Nc6 {[%clk 0:02:54]} 3. e3 {[%clk 0:03:02]}  d5 {[%clk 0:02:53]} 4. Bb5 {[%clk 0:03:01]}  Bd6 {[%clk 0:02:52]} 5. f4 {[%clk 0:03:01]}  Qe7 {[%clk 0:01:52]} 6. Nf3 {[%clk 0:02:49]}  e4 {[%clk 0:01:47]} 7. Bxg7 {[%clk 0:02:43]}  exf3 {[%clk 0:01:47]} 8. Qxf3 {[%clk 0:02:44]}  f6 {[%clk 0:01:43]} 9. Bxh8 {[%clk 0:02:44]}  Bd7 {[%clk 0:01:41]} 10. Nc3 {[%clk 0:02:37]}  O-O-O {[%clk 0:01:29]} 11. Nxd5 {[%clk 0:02:36]}  Qf8 {[%clk 0:01:27]} 12. O-O-O {[%clk 0:02:32]}  Kb8 {[%clk 0:01:26]} 13. Kb1 {[%clk 0:02:32]}  Nd4 {[%clk 0:01:25]} 14. exd4 {[%clk 0:02:31]}  Bxb5 {[%clk 0:01:25]} 15. Rhe1 {[%clk 0:02:29]}  Bc6 {[%clk 0:01:25]} 16. Qh5 {[%clk 0:02:24]}  Bxd5 {[%clk 0:01:11]} 17. Qxd5 {[%clk 0:02:25]}  Ne7 {[%clk 0:01:10]} 18. Qh5 {[%clk 0:02:20]}  Qxh8 {[%clk 0:01:10]} 19. g3 {[%clk 0:02:21]}  Qg8 {[%clk 0:01:06]} 20. Re2 {[%clk 0:02:19]}  Nc6 {[%clk 0:01:03]} 21. c3 {[%clk 0:02:19]}  a5 {[%clk 0:00:56]} 22. Rde1 {[%clk 0:02:20]}  Qg6+ {[%clk 0:00:49]} 23. Qxg6 {[%clk 0:02:19]}  hxg6 {[%clk 0:00:50]} 24. Re8 {[%clk 0:02:20]}  Kc8 {[%clk 0:00:50]} 25. d5 {[%clk 0:02:17]}  Nb8 {[%clk 0:00:46]} 26. R1e6 {[%clk 0:02:06]}  Nd7 {[%clk 0:00:42]} 27. h4 {[%clk 0:02:04]}  b6 {[%clk 0:00:38]} 28. d4 {[%clk 0:02:04]}  Bf8 {[%clk 0:00:26]} 29. Kc2 {[%clk 0:02:01]}  Bd6 {[%clk 0:00:22]} 30. Kd3 {[%clk 0:02:02]}  g5 {[%clk 0:00:18]} 31. fxg5 {[%clk 0:02:01]}  fxg5 {[%clk 0:00:19]} 32. hxg5 {[%clk 0:02:02]}  Bxg3 {[%clk 0:00:19]} 33. g6 {[%clk 0:02:03]} 1-0


[Site "https://www.chess.com"]

[Event "Late Titled Tuesday Blitz February 8 2022"]
[White "Reprintsev, Alexander"]
[Black "Araujo Filho, Luiz Antonio Coel"]
[WhiteFideId "14100541"]
[BlackFideId "2130661"]
[WhiteElo "2126"]
[BlackElo "2257"]
[Result "1-0"]
[Round "02"]
[TimeControl "180+1"]
[Date "2022.02.09"]
[WhiteClock "0:01:22"]
[BlackClock "0:00:00"]

1. e4 {[%clk 0:02:53]}  c6 {[%clk 0:02:59]} 2. b3 {[%clk 0:02:52]}  d5 {[%clk 0:02:58]} 3. Qe2 {[%clk 0:02:51]}  dxe4 {[%clk 0:02:56]} 4. Nc3 {[%clk 0:02:50]}  Nf6 {[%clk 0:02:56]} 5. Nxe4 {[%clk 0:02:50]}  Nxe4 {[%clk 0:02:47]} 6. Qxe4 {[%clk 0:02:50]}  Nd7 {[%clk 0:02:47]} 7. Bb2 {[%clk 0:02:50]}  e6 {[%clk 0:02:45]} 8. Nf3 {[%clk 0:02:48]}  Nf6 {[%clk 0:02:46]} 9. Qh4 {[%clk 0:02:48]}  Be7 {[%clk 0:02:45]} 10. Ne5 {[%clk 0:02:47]}  Qc7 {[%clk 0:02:42]} 11. Qg3 {[%clk 0:02:40]}  O-O {[%clk 0:02:39]} 12. Ng6 {[%clk 0:02:37]}  Bd6 {[%clk 0:02:29]} 13. Ne5 {[%clk 0:02:22]}  Nd7 {[%clk 0:02:06]} 14. f4 {[%clk 0:02:21]}  Nxe5 {[%clk 0:01:54]} 15. fxe5 {[%clk 0:02:21]}  Be7 {[%clk 0:01:54]} 16. Bd3 {[%clk 0:02:19]}  c5 {[%clk 0:01:52]} 17. O-O {[%clk 0:02:04]}  b6 {[%clk 0:01:52]} 18. Rf6 {[%clk 0:02:00]}  Bxf6 {[%clk 0:00:54]} 19. exf6 {[%clk 0:01:55]}  Qxg3 {[%clk 0:00:50]} 20. hxg3 {[%clk 0:01:54]}  gxf6 {[%clk 0:00:45]} 21. Be4 {[%clk 0:01:54]}  Rb8 {[%clk 0:00:43]} 22. Bxf6 {[%clk 0:01:54]}  Ba6 {[%clk 0:00:30]} 23. d3 {[%clk 0:01:49]}  Bb7 {[%clk 0:00:21]} 24. Be5 {[%clk 0:01:42]}  Bxe4 {[%clk 0:00:17]} 25. Bxb8 {[%clk 0:01:42]}  Rxb8 {[%clk 0:00:15]} 26. dxe4 {[%clk 0:01:42]}  Rd8 {[%clk 0:00:15]} 27. c3 {[%clk 0:01:31]}  Rd2 {[%clk 0:00:09]} 28. b4 {[%clk 0:01:30]}  cxb4 {[%clk 0:00:09]} 29. cxb4 {[%clk 0:01:30]}  Kg7 {[%clk 0:00:09]} 30. a4 {[%clk 0:01:27]}  Rd4 {[%clk 0:00:02]} 31. a5 {[%clk 0:01:24]}  Rxb4 {[%clk 0:00:02]} 32. axb6 {[%clk 0:01:22]}  axb6 {[%clk 0:00:02]} 33. Re1 {[%clk 0:01:21]}  b5 {[%clk 0:00:01]} 34. Kf2 {[%clk 0:01:21]}  Kf6 {[%clk 0:00:02]} 35. Kf3 {[%clk 0:01:21]}  Ke5 {[%clk 0:00:00]} 36. Re3 {[%clk 0:01:22]} 1-0


[Site "https://www.chess.com"]

[Event "Late Titled Tuesday Blitz February 8 2022"]
[White "Risteski, Emil"]
[Black "Ozen, Deniz"]
[WhiteFideId "15005267"]
[BlackFideId "6349196"]
[WhiteElo "2070"]
[BlackElo "2326"]
[Result "1/2-1/2"]
[Round "02"]
[TimeControl "180+1"]
[Date "2022.02.08"]
[WhiteClock "0:00:18"]
[BlackClock "0:00:06"]

1. e4 {[%clk 0:03:00]}  e5 {[%clk 0:03:00]} 2. Nf3 {[%clk 0:02:59]}  Nf6 {[%clk 0:03:01]} 3. Nc3 {[%clk 0:02:59]}  Nc6 {[%clk 0:02:59]} 4. g3 {[%clk 0:02:59]}  Bc5 {[%clk 0:02:57]} 5. Bg2 {[%clk 0:03:00]}  d6 {[%clk 0:02:57]} 6. O-O {[%clk 0:03:00]}  O-O {[%clk 0:02:56]} 7. d3 {[%clk 0:03:01]}  Ne7 {[%clk 0:02:49]} 8. Na4 {[%clk 0:02:59]}  Bb6 {[%clk 0:02:46]} 9. c4 {[%clk 0:02:49]}  Ng6 {[%clk 0:02:46]} 10. Nxb6 {[%clk 0:02:49]}  axb6 {[%clk 0:02:46]} 11. h3 {[%clk 0:02:49]}  c6 {[%clk 0:02:43]} 12. b3 {[%clk 0:02:48]}  d5 {[%clk 0:02:41]} 13. Qe2 {[%clk 0:02:47]}  Re8 {[%clk 0:02:39]} 14. Bb2 {[%clk 0:02:44]}  d4 {[%clk 0:02:20]} 15. a4 {[%clk 0:02:38]}  c5 {[%clk 0:02:18]} 16. Bc1 {[%clk 0:02:37]}  Rf8 {[%clk 0:02:15]} 17. Bd2 {[%clk 0:02:31]}  Ne8 {[%clk 0:02:16]} 18. Ra2 {[%clk 0:02:27]}  Nd6 {[%clk 0:02:15]} 19. Rfa1 {[%clk 0:02:22]}  h6 {[%clk 0:02:00]} 20. b4 {[%clk 0:02:14]}  f5 {[%clk 0:01:52]} 21. exf5 {[%clk 0:02:11]}  Bxf5 {[%clk 0:01:53]} 22. g4 {[%clk 0:01:46]}  Bxd3 {[%clk 0:01:46]} 23. Qxd3 {[%clk 0:01:47]}  e4 {[%clk 0:01:47]} 24. Qb1 {[%clk 0:01:45]}  exf3 {[%clk 0:01:46]} 25. Qxg6 {[%clk 0:01:42]}  fxg2 {[%clk 0:01:45]} 26. Bxh6 {[%clk 0:01:38]}  Qf6 {[%clk 0:01:35]} 27. Qxf6 {[%clk 0:01:37]}  Rxf6 {[%clk 0:01:36]} 28. Bg5 {[%clk 0:01:36]}  Re6 {[%clk 0:01:35]} 29. a5 {[%clk 0:01:27]}  Nxc4 {[%clk 0:01:30]} 30. bxc5 {[%clk 0:01:12]}  Rxa5 {[%clk 0:01:24]} 31. cxb6 {[%clk 0:01:07]}  Rxa2 {[%clk 0:01:22]} 32. Rxa2 {[%clk 0:01:07]}  d3 {[%clk 0:01:20]} 33. Kxg2 {[%clk 0:01:06]}  Rxb6 {[%clk 0:01:13]} 34. h4 {[%clk 0:01:01]}  Rd6 {[%clk 0:01:04]} 35. Bd2 {[%clk 0:01:00]}  b5 {[%clk 0:00:57]} 36. Kf3 {[%clk 0:00:59]}  Re6 {[%clk 0:00:56]} 37. Bc3 {[%clk 0:00:47]}  Re7 {[%clk 0:00:50]} 38. h5 {[%clk 0:00:39]}  Kh7 {[%clk 0:00:47]} 39. g5 {[%clk 0:00:38]}  Rd7 {[%clk 0:00:25]} 40. Bd2 {[%clk 0:00:37]}  g6 {[%clk 0:00:18]} 41. h6 {[%clk 0:00:31]}  Nxd2+ {[%clk 0:00:19]} 42. Rxd2 {[%clk 0:00:31]}  Rd5 {[%clk 0:00:19]} 43. Ke4 {[%clk 0:00:24]}  Rxg5 {[%clk 0:00:19]} 44. Rxd3 {[%clk 0:00:24]}  Kxh6 {[%clk 0:00:20]} 45. Rd6 {[%clk 0:00:20]}  Rf5 {[%clk 0:00:16]} 46. f4 {[%clk 0:00:20]}  Kg7 {[%clk 0:00:16]} 47. Rb6 {[%clk 0:00:20]}  Kh7 {[%clk 0:00:15]} 48. Ke3 {[%clk 0:00:20]}  Rc5 {[%clk 0:00:14]} 49. Kf3 {[%clk 0:00:17]}  Kg7 {[%clk 0:00:13]} 50. Kg4 {[%clk 0:00:17]}  Kh7 {[%clk 0:00:08]} 51. Rb7+ {[%clk 0:00:17]}  Kh6 {[%clk 0:00:08]} 52. Rb6 {[%clk 0:00:18]}  Rd5 {[%clk 0:00:07]} 53. Rb7 {[%clk 0:00:17]}  Rc5 {[%clk 0:00:05]} 54. Rb6 {[%clk 0:00:17]}  Kh7 {[%clk 0:00:05]} 55. Rb7+ {[%clk 0:00:17]}  Kg8 {[%clk 0:00:06]} 56. Rb6 {[%clk 0:00:16]}  Kf7 {[%clk 0:00:06]} 57. Rb7+ {[%clk 0:00:17]}  Ke8 {[%clk 0:00:07]} 58. Rb6 {[%clk 0:00:17]}  Kf7 {[%clk 0:00:05]} 59. Rb7+ {[%clk 0:00:17]}  Kf6 {[%clk 0:00:05]} 60. Rb6+ {[%clk 0:00:17]}  Kg7 {[%clk 0:00:06]} 61. Rb7+ {[%clk 0:00:18]}  Kh6 {[%clk 0:00:06]} 1/2-1/2


[Site "https://www.chess.com"]

[Event "Late Titled Tuesday Blitz February 8 2022"]
[White "Rorrer, Grayson"]
[Black "Dobre, Claudiu-Cristian"]
[WhiteFideId "30944996"]
[BlackFideId "1211854"]
[WhiteElo "2122"]
[BlackElo "2207"]
[Result "0-1"]
[Round "02"]
[TimeControl "180+1"]
[Date "2022.02.09"]
[WhiteClock "0:00:13"]
[BlackClock "0:00:07"]

1. e4 {[%clk 0:03:00]}  Nc6 {[%clk 0:02:58]} 2. Nf3 {[%clk 0:02:59]}  d6 {[%clk 0:02:59]} 3. d4 {[%clk 0:02:58]}  Nf6 {[%clk 0:02:59]} 4. Nc3 {[%clk 0:02:58]}  e5 {[%clk 0:02:59]} 5. Bb5 {[%clk 0:02:56]}  Bd7 {[%clk 0:02:59]} 6. O-O {[%clk 0:02:55]}  exd4 {[%clk 0:02:55]} 7. Nxd4 {[%clk 0:02:56]}  Be7 {[%clk 0:02:55]} 8. Be3 {[%clk 0:02:53]}  O-O {[%clk 0:02:54]} 9. Nxc6 {[%clk 0:02:50]}  bxc6 {[%clk 0:02:51]} 10. Bd3 {[%clk 0:02:50]}  Ng4 {[%clk 0:02:48]} 11. Bf4 {[%clk 0:02:50]}  Bg5 {[%clk 0:02:43]} 12. Bg3 {[%clk 0:02:48]}  Bh4 {[%clk 0:02:42]} 13. Be2 {[%clk 0:02:39]}  Bxg3 {[%clk 0:02:40]} 14. hxg3 {[%clk 0:02:40]}  Qg5 {[%clk 0:02:27]} 15. Qd4 {[%clk 0:02:17]}  Qe5 {[%clk 0:01:26]} 16. Qxe5 {[%clk 0:02:09]}  Nxe5 {[%clk 0:01:24]} 17. f4 {[%clk 0:02:09]}  Ng6 {[%clk 0:01:24]} 18. Rfd1 {[%clk 0:02:04]}  Bc8 {[%clk 0:01:11]} 19. Kf2 {[%clk 0:02:01]}  Rb8 {[%clk 0:01:08]} 20. b3 {[%clk 0:02:01]}  Re8 {[%clk 0:01:00]} 21. Bf3 {[%clk 0:02:00]}  Bb7 {[%clk 0:00:53]} 22. Rd3 {[%clk 0:01:44]}  Re7 {[%clk 0:00:53]} 23. Rad1 {[%clk 0:01:43]}  f6 {[%clk 0:00:51]} 24. Bg4 {[%clk 0:01:34]}  c5 {[%clk 0:00:50]} 25. Bf5 {[%clk 0:01:33]}  Nf8 {[%clk 0:00:49]} 26. Nd5 {[%clk 0:01:32]}  Bxd5 {[%clk 0:00:49]} 27. exd5 {[%clk 0:01:27]}  g6 {[%clk 0:00:49]} 28. Bg4 {[%clk 0:01:27]}  f5 {[%clk 0:00:49]} 29. Bf3 {[%clk 0:01:27]}  Nd7 {[%clk 0:00:49]} 30. g4 {[%clk 0:01:20]}  Nf6 {[%clk 0:00:49]} 31. g5 {[%clk 0:01:17]}  Ne4+ {[%clk 0:00:47]} 32. Bxe4 {[%clk 0:01:17]}  Rxe4 {[%clk 0:00:43]} 33. g3 {[%clk 0:01:16]}  Rbe8 {[%clk 0:00:40]} 34. R1d2 {[%clk 0:01:09]}  a5 {[%clk 0:00:39]} 35. c4 {[%clk 0:01:02]}  a4 {[%clk 0:00:38]} 36. Kf3 {[%clk 0:00:58]}  Kf7 {[%clk 0:00:38]} 37. g4 {[%clk 0:00:53]}  fxg4+ {[%clk 0:00:35]} 38. Kxg4 {[%clk 0:00:54]}  Rb8 {[%clk 0:00:34]} 39. Rh2 {[%clk 0:00:54]}  Kg7 {[%clk 0:00:32]} 40. Rdh3 {[%clk 0:00:52]}  h5+ {[%clk 0:00:25]} 41. gxh6+ {[%clk 0:00:50]}  Kh7 {[%clk 0:00:25]} 42. Rf2 {[%clk 0:00:42]}  axb3 {[%clk 0:00:24]} 43. axb3 {[%clk 0:00:43]}  Rf8 {[%clk 0:00:20]} 44. Kg3 {[%clk 0:00:25]}  Rf5 {[%clk 0:00:20]} 45. Kg4 {[%clk 0:00:24]}  Rf8 {[%clk 0:00:20]} 46. Rh4 {[%clk 0:00:23]}  Rf5 {[%clk 0:00:18]} 47. Rh1 {[%clk 0:00:20]}  Rf8 {[%clk 0:00:18]} 48. Ra1 {[%clk 0:00:20]}  Kxh6 {[%clk 0:00:13]} 49. Ra7 {[%clk 0:00:18]}  Rf7 {[%clk 0:00:12]} 50. Kg3 {[%clk 0:00:16]}  Kg7 {[%clk 0:00:12]} 51. Rf3 {[%clk 0:00:16]}  Rfe7 {[%clk 0:00:10]} 52. f5 {[%clk 0:00:15]}  gxf5 {[%clk 0:00:09]} 53. Rxf5 {[%clk 0:00:16]}  Re3+ {[%clk 0:00:09]} 54. Rf3 {[%clk 0:00:16]}  Rxf3+ {[%clk 0:00:09]} 55. Kxf3 {[%clk 0:00:17]}  Kf6 {[%clk 0:00:10]} 56. Ra2 {[%clk 0:00:17]}  Rh7 {[%clk 0:00:09]} 57. Kg2 {[%clk 0:00:15]}  Ke5 {[%clk 0:00:09]} 58. Rd2 {[%clk 0:00:14]}  Ke4 {[%clk 0:00:09]} 59. Rd1 {[%clk 0:00:14]}  Ke3 {[%clk 0:00:10]} 60. Kg3 {[%clk 0:00:13]}  Ke2 {[%clk 0:00:10]} 61. Rb1 {[%clk 0:00:11]}  Kd3 {[%clk 0:00:10]} 62. Rf1 {[%clk 0:00:12]}  Rg7+ {[%clk 0:00:08]} 63. Kh4 {[%clk 0:00:12]}  Kc3 {[%clk 0:00:08]} 64. Rf3+ {[%clk 0:00:12]}  Kb4 {[%clk 0:00:08]} 65. Kh5 {[%clk 0:00:12]}  Rg2 {[%clk 0:00:07]} 66. Kh4 {[%clk 0:00:11]}  Rb2 {[%clk 0:00:07]} 67. Rf7 {[%clk 0:00:12]}  Rxb3 {[%clk 0:00:07]} 68. Rxc7 {[%clk 0:00:13]}  Kxc4 {[%clk 0:00:07]} 0-1


[Site "https://www.chess.com"]

[Event "Late Titled Tuesday Blitz February 8 2022"]
[White "Rustemov, Alexander"]
[Black "Kukula, Pawel"]
[WhiteFideId "4119002"]
[BlackFideId "1115081"]
[WhiteElo "2816"]
[BlackElo "2203"]
[Result "1-0"]
[Round "02"]
[TimeControl "180+1"]
[Date "2022.02.09"]
[WhiteClock "0:01:11"]
[BlackClock "0:00:35"]

1. d4 {[%clk 0:03:00]}  f5 {[%clk 0:02:53]} 2. g3 {[%clk 0:03:00]}  Nf6 {[%clk 0:02:49]} 3. Bg2 {[%clk 0:03:01]}  e6 {[%clk 0:02:49]} 4. Nf3 {[%clk 0:03:01]}  d5 {[%clk 0:02:49]} 5. O-O {[%clk 0:03:01]}  Bd6 {[%clk 0:02:45]} 6. c4 {[%clk 0:02:58]}  c6 {[%clk 0:02:45]} 7. b3 {[%clk 0:02:57]}  Qe7 {[%clk 0:02:45]} 8. Bb2 {[%clk 0:02:56]}  O-O {[%clk 0:02:44]} 9. Ne5 {[%clk 0:02:56]}  Nbd7 {[%clk 0:02:41]} 10. Nd3 {[%clk 0:02:54]}  b6 {[%clk 0:02:33]} 11. Nd2 {[%clk 0:02:54]}  Bb7 {[%clk 0:02:31]} 12. Nf3 {[%clk 0:02:54]}  Ne4 {[%clk 0:02:31]} 13. e3 {[%clk 0:02:53]}  a5 {[%clk 0:02:27]} 14. Qc2 {[%clk 0:02:39]}  Rac8 {[%clk 0:02:14]} 15. Rac1 {[%clk 0:02:33]}  c5 {[%clk 0:01:58]} 16. dxc5 {[%clk 0:02:22]}  Ndxc5 {[%clk 0:01:51]} 17. Nde5 {[%clk 0:02:17]}  Ba6 {[%clk 0:01:44]} 18. Rfd1 {[%clk 0:02:15]}  dxc4 {[%clk 0:01:36]} 19. Nxc4 {[%clk 0:02:13]}  Bc7 {[%clk 0:01:32]} 20. a4 {[%clk 0:01:51]}  Rcd8 {[%clk 0:01:32]} 21. Nd4 {[%clk 0:01:51]}  Bb7 {[%clk 0:01:27]} 22. Nb5 {[%clk 0:01:51]}  Bb8 {[%clk 0:01:27]} 23. Nxb6 {[%clk 0:01:33]}  Rxd1+ {[%clk 0:01:05]} 24. Rxd1 {[%clk 0:01:33]}  Bc6 {[%clk 0:00:48]} 25. Ba3 {[%clk 0:01:25]}  Bxb5 {[%clk 0:00:35]} 26. axb5 {[%clk 0:01:17]}  Bd6 {[%clk 0:00:35]} 27. Nc4 {[%clk 0:01:11]} 1-0


[Site "https://www.chess.com"]

[Event "Late Titled Tuesday Blitz February 8 2022"]
[White "Sliwicki, Damian"]
[Black "Mustafayev, Farid"]
[WhiteFideId "1127128"]
[BlackFideId "13408771"]
[WhiteElo "2084"]
[BlackElo "2129"]
[Result "0-1"]
[Round "02"]
[TimeControl "180+1"]
[Date "2022.02.09"]
[WhiteClock "0:00:01"]
[BlackClock "0:02:14"]

1. e4 {[%clk 0:02:53]}  Nf6 {[%clk 0:02:59]} 2. Nc3 {[%clk 0:02:26]}  d5 {[%clk 0:02:58]} 3. e5 {[%clk 0:02:25]}  Nfd7 {[%clk 0:02:59]} 4. e6 {[%clk 0:02:14]}  fxe6 {[%clk 0:02:59]} 5. d4 {[%clk 0:02:15]}  g6 {[%clk 0:02:58]} 6. Bd3 {[%clk 0:01:41]}  Bg7 {[%clk 0:02:56]} 7. h4 {[%clk 0:01:39]}  Nf6 {[%clk 0:02:50]} 8. h5 {[%clk 0:01:26]}  Nxh5 {[%clk 0:02:49]} 9. Rxh5 {[%clk 0:01:27]}  gxh5 {[%clk 0:02:50]} 10. Qxh5+ {[%clk 0:01:28]}  Kd7 {[%clk 0:02:50]} 11. Nf3 {[%clk 0:01:22]}  Nc6 {[%clk 0:02:50]} 12. Bf4 {[%clk 0:00:46]}  Qe8 {[%clk 0:02:48]} 13. Qg4 {[%clk 0:00:20]}  Bxd4 {[%clk 0:02:26]} 14. Nxd5 {[%clk 0:00:14]}  h5 {[%clk 0:02:26]} 15. Qh3 {[%clk 0:00:01]}  Bc3+ {[%clk 0:02:14]} 0-1


[Site "https://www.chess.com"]

[Event "Late Titled Tuesday Blitz February 8 2022"]
[White "Sloan, Julia Elizabeth"]
[Black "Yang, Qindong"]
[WhiteFideId "2018950"]
[BlackFideId "8603758"]
[WhiteElo "2113"]
[BlackElo "2101"]
[Result "0-1"]
[Round "02"]
[TimeControl "180+1"]
[Date "2022.02.09"]
[WhiteClock "0:02:06"]
[BlackClock "0:01:03"]

1. d4 {[%clk 0:03:00]}  d6 {[%clk 0:02:58]} 2. e4 {[%clk 0:02:59]}  Nf6 {[%clk 0:02:56]} 3. f3 {[%clk 0:03:00]}  g6 {[%clk 0:02:55]} 4. Be3 {[%clk 0:02:59]}  Bg7 {[%clk 0:02:53]} 5. Qd2 {[%clk 0:02:59]}  c6 {[%clk 0:02:45]} 6. c3 {[%clk 0:02:58]}  O-O {[%clk 0:02:43]} 7. Bh6 {[%clk 0:02:55]}  e5 {[%clk 0:02:43]} 8. Bxg7 {[%clk 0:02:54]}  Kxg7 {[%clk 0:02:42]} 9. h4 {[%clk 0:02:54]}  h5 {[%clk 0:02:41]} 10. Nh3 {[%clk 0:02:53]}  Qe7 {[%clk 0:02:28]} 11. Ng5 {[%clk 0:02:51]}  Nbd7 {[%clk 0:02:19]} 12. Bc4 {[%clk 0:02:47]}  d5 {[%clk 0:02:19]} 13. Bd3 {[%clk 0:02:44]}  dxe4 {[%clk 0:02:14]} 14. fxe4 {[%clk 0:02:40]}  Ng4 {[%clk 0:01:58]} 15. O-O {[%clk 0:02:35]}  Ndf6 {[%clk 0:01:54]} 16. dxe5 {[%clk 0:02:28]}  Qxe5 {[%clk 0:01:51]} 17. Nf3 {[%clk 0:02:29]}  Qc5+ {[%clk 0:01:39]} 18. Kh1 {[%clk 0:02:27]}  Rd8 {[%clk 0:01:38]} 19. Qe2 {[%clk 0:02:25]}  Be6 {[%clk 0:01:31]} 20. Na3 {[%clk 0:02:23]}  Ne3 {[%clk 0:01:23]} 21. Rfc1 {[%clk 0:02:17]}  Nfg4 {[%clk 0:01:17]} 22. Nc2 {[%clk 0:02:14]}  Rxd3 {[%clk 0:01:09]} 23. Nxe3 {[%clk 0:02:09]}  Qxe3 {[%clk 0:01:06]} 24. Qxe3 {[%clk 0:02:06]}  Nxe3 {[%clk 0:01:03]} 0-1


[Site "https://www.chess.com"]